Cogmind - Beta 16 @@@ ROGUE MODE // 2025.12.23 @ 05:15:23 Player: naththebg Result: Destroyed by P-80 Master with Gamma Rifle Performance ------------- Evolutions (9) 4500 Regions Visited (25) 5000 Robots Destroyed (419) 2095 Value Destroyed (19025) 19025 Prototype IDs (86) 1720 Alien Tech Used (0) 0 Bonus (10589) 10589 TOTAL SCORE: 42929 Bonus ------- Triggered High Security 500 High Alert Combat Kills 4057 Follower Combat Kills 2705 Network Hubs Disabled 200 Met Data Miner 300 Met Imprinter 300 Built Enhanced Grunts 300 A7 Reached Mainframe 300 Met R17 at Cetus 500 Met R17 at Research 2000 Scanned by Researcher 500 Friendly Fire -1073 Cogmind --------- Core Integrity 0/1600 Matter 292/300 Energy 99/100 System Corruption 10% Temperature Cool (0) Movement Core (50) Location -1/Access Parts ------- > --- POWER (2) -------- (None) > --- PROPULSION (7) --- (None) > --- UTILITY (10) ----- Advanced Signal Interpreter > --- WEAPON (6) ------- (None) > --- INVENTORY (5) ---- Advanced Kinecellerator Advanced Force Field Advanced Component Analysis Suite Cooled Nova Cannon Peak State ------------ > --- POWER ------------ Quantum Reactor Light Quantum Reactor > --- PROPULSION ------- Thunder Leg Arachnoskeleton Experimental Myomer Leg Myomer Exoskeleton > --- UTILITY ---------- Improved Cryofiber Web Experimental Heat Sink Experimental Heat Sink High-capacity Storage Unit Experimental Optical Array Advanced Sensor Array Advanced Signal Interpreter Experimental Reaction Control System Layered Heavy Armor Plating > --- WEAPON ----------- Cooled Plasma Rifle Advanced Variable Charge Gun Quantum Rifle Enhanced Quantum Rifle Omega Cannon > --- INVENTORY -------- Thunder Leg Enhanced Biometal Leg Centrium Leg Experimental Heat Sink Advanced Energy Well Experimental Matter Compressor Advanced Kinecellerator Experimental Reaction Control System Experimental Thermal Defense Suite Advanced Force Field Advanced Component Analysis Suite Enhanced Nova Cannon Cooled Nova Cannon Compact Linear Accelerator Compact Linear Accelerator Guided Micro-nuke Launcher Advanced Remote Datajack Portable AFG [Rating: 228] Favorites ----------- Power Heavy Antimatter Reactor Engine Angular Momentum Engine Power Core Neutrino Core Reactor Heavy Antimatter Reactor Propulsion Flexi-carbon Leg Treads Light Treads Leg Flexi-carbon Leg Utility Advanced Heat Sink Device Advanced Heat Sink Storage Large Storage Unit Processor Advanced Visual Processing Unit Hackware Hacking Suite Protection Improved Light Armor Plating Weapon Enhanced Autogun Energy Gun Heavy Gatling Laser Energy Cannon Ion Cannon Ballistic Gun Enhanced Autogun Ballistic Cannon Hardcell Cannon Launcher Mini Grenade Launcher Special Weapon Advanced Remote Datajack Build | -11 -10 -10 -8 -7 -7 -7 -7 -6 -6 -6 -6 -6 -5 -5 -5 -5 -4 -4 -4 -4 -4 -3 -2 -2 -1 ------- Run | Yrd Mat Sub Mat Fac Low Low Dat Pro Fac Low Low Zio Pro Fac Was Fac Fac Ext Cet Arc Hub Res Res Tes Acc Slots Evolved 16 | . . . 4 2 . . . . 2 . . . . 2 . . 2 . . . . 2 2 . . Power 1 | . . . . . . . . . . . . . . . . . 1 . . . . . . . . Propulsion 3 | . . . 1 . . . . . 1 . . . . 1 . . . . . . . . . . . Utility 8 | . . . 2 1 . . . . 1 . . . . 1 . . 1 . . . . 1 1 . . Weapon 4 | . . . 1 1 . . . . . . . . . . . . . . . . . 1 1 . . Parts Attached 241 | 6 3 8 35 3 3 1 . . 24 1 . 1 8 21 5 9 7 10 11 1 3 35 13 18 15 Power 25 | 1 1 1 4 1 2 . . . 1 . . . 1 2 . . 2 1 1 1 . . 2 1 3 Engine 10 | 1 1 1 3 1 1 . . . 1 . . . 1 . . . . . . . . . . . . Core 4 | . . . 1 . 1 . . . . . . . . 2 . . . . . . . . . . . Reactor 11 | . . . . . . . . . . . . . . . . . 2 1 1 1 . . 2 1 3 Propulsion 56 | 2 2 2 6 . 1 . . . 5 1 . . 2 6 . . . 6 4 . . 10 3 2 4 Treads 12 | . 2 2 3 . . . . . 3 . . . . . . . . . 1 . . . . . 1 Leg 44 | 2 . . 3 . 1 . . . 2 1 . . 2 6 . . . 6 3 . . 10 3 2 3 Wheel . | . . . . . . . . . . . . . . . . . . . . . . . . . . Hover . | . . . . . . . . . . . . . . . . . . . . . . . . . . Flight . | . . . . . . . . . . . . . . . . . . . . . . . . . . Utility 84 | 1 . . 7 1 . 1 . . 10 . . 1 . 8 1 4 3 2 3 . 2 22 4 9 5 Device 49 | . . . 1 . . . . . 8 . . 1 . 3 . 3 2 1 2 . 2 16 2 5 3 Storage 7 | 1 . . 1 . . 1 . . . . . . . 1 . . . . . . . 1 1 1 . Processor 12 | . . . 2 . . . . . . . . . . 3 . 1 1 1 . . . 3 . 1 . Hackware 2 | . . . 1 . . . . . 1 . . . . . . . . . . . . . . . . Protection 14 | . . . 2 1 . . . . 1 . . . . 1 1 . . . 1 . . 2 1 2 2 Artifact . | . . . . . . . . . . . . . . . . . . . . . . . . . . Weapon 76 | 2 . 5 18 1 . . . . 8 . . . 5 5 4 5 2 1 3 . 1 3 4 6 3 Energy Gun 38 | . . . 5 . . . . . 4 . . . 4 2 4 5 2 1 2 . . 3 3 2 1 Energy Cannon 5 | . . . 2 . . . . . 1 . . . . . . . . . . . 1 . . 1 . Ballistic Gun 16 | 2 . 4 8 . . . . . 2 . . . . . . . . . . . . . . . . Ballistic Cannon 7 | . . . . . . . . . 1 . . . . 3 . . . . . . . . 1 1 1 Launcher 8 | . . 1 3 1 . . . . . . . . 1 . . . . . . . . . . 1 1 Special Weapon 2 | . . . . . . . . . . . . . . . . . . . 1 . . . . 1 . Impact Weapon . | . . . . . . . . . . . . . . . . . . . . . . . . . . Slashing Weapon . | . . . . . . . . . . . . . . . . . . . . . . . . . . Piercing Weapon . | . . . . . . . . . . . . . . . . . . . . . . . . . . Special Melee Weapon . | . . . . . . . . . . . . . . . . . . . . . . . . . . Unidentified Prototypes 32 | . . . 5 2 . . . . 2 . . 1 . 2 . 2 2 . 3 . 1 7 . 5 . Corrupted Parts 1 | . . . . . . . . . . . . . . . . . . 1 . . . . . . . System Corruption 5 | . . . . . . . . . . . . . . . . . . 5 . . . . . . . Parts Lost 79 | . . 2 6 . 1 2 . 2 5 . 1 . 1 4 1 2 3 5 . . . 2 9 4 29 Power 9 | . . 1 1 . 1 1 . . . . . . . . . . . . . . . . 2 . 3 Propulsion 22 | . . 1 2 . . 1 . . 2 . . . . 2 . . 1 1 . . . 1 2 . 9 Utility 28 | . . . 1 . . . . 1 1 . 1 . 1 . 1 . 2 3 . . . 1 4 3 9 Weapon 20 | . . . 2 . . . . 1 2 . . . . 2 . 2 . 1 . . . . 1 1 8 Highest Loss Streak 12 | . . 2 4 . 1 2 . 1 3 . 1 . 1 2 1 1 2 3 . . . 1 5 2 12 To Critical Strikes 4 | . . . . . . . . . . . . . . . . . . . . . . . . . 4 Average Backups 11 | 4 7 7 6 6 7 8 9 10 12 12 12 12 13 12 12 12 12 11 12 13 13 13 16 16 14 Power . | 1 1 . . . . . . . . 1 1 1 . . . . . . . 1 1 . . . . Propulsion 2 | 2 3 3 1 2 2 1 1 1 1 1 2 2 2 1 2 2 2 3 3 3 3 2 3 4 1 Utility 2 | . . . . . . . 1 1 2 2 1 1 1 1 1 2 2 1 . 2 2 4 6 6 7 Weapon 5 | . 2 4 3 3 4 6 7 7 8 8 8 8 8 8 7 7 5 6 6 6 6 4 4 4 3 Tool/Special . | . . . . . . . . . . . . . . . . . . . . . . . . . . Unused Backups 45 | . 3 3 3 2 . . . . 2 . . . 5 . . 1 . . . . . 10 2 7 7 Power 4 | . 1 . . . . . . . . . . . . . . . . . . . . . 1 . 2 Propulsion 8 | . 2 2 . . . . . . . . . . . . . . . . . . . 1 1 2 . Utility 12 | . . . 2 1 . . . . 1 . . . 1 . . . . . . . . 3 . . 4 Weapon 21 | . . 1 1 1 . . . . 1 . . . 4 . . 1 . . . . . 6 . 5 1 Tool/Special . | . . . . . . . . . . . . . . . . . . . . . . . . . . Average Slot Usage (%) 92 | . 85 83 94 99 99 96 92 82 95 100 100 98 96 96 97 99 93 93 87 100 100 99 97 84 61 Engine 3 | . 14 13 6 7 6 4 . . 5 6 6 6 6 1 . . . . . . . . . . . Reactor 3 | . . . . . . . . . . . . . . . . . 1 9 10 10 10 9 7 7 5 Treads 3 | . 25 27 7 . . . . . 8 2 . . . . . . . . . . . . . . . Leg 20 | . 2 . 18 23 23 22 23 23 16 23 26 26 26 28 29 28 25 26 25 26 26 22 20 13 14 Device 15 | . . . 7 7 6 7 7 2 5 26 26 26 23 15 17 16 20 22 21 21 21 25 23 20 12 Storage 6 | . 14 14 9 7 7 7 7 7 6 6 6 6 6 5 5 5 5 5 5 5 5 4 5 5 2 Processor 7 | . . . 12 7 7 7 7 7 6 6 6 6 6 12 11 11 8 7 10 10 10 9 8 7 6 Hackware 1 | . . . 1 7 7 7 7 7 10 . . . . . . . . . . . . . . . . Protection 2 | . . . 2 6 7 7 7 7 8 . . . . 2 3 5 5 . 1 5 5 1 3 3 3 Energy Gun 14 | . . . 3 . . . . . 5 26 26 24 25 22 21 22 20 20 6 10 10 22 25 24 8 Ballistic Gun 7 | . 28 17 19 29 29 30 30 26 17 . . . . . . . . . . . . . . . . Peak Build Rating 228 | 6 8 14 42 50 50 50 46 46 71 72 71 72 71 90 93 96 115 113 123 122 122 178 194 228 220 Average Rating 93 | 3 7 10 33 48 49 48 46 41 57 71 70 69 68 83 89 93 104 108 100 121 121 155 186 199 170 On Entrance 79 | . 6 8 14 42 50 50 46 46 39 71 71 70 71 67 90 93 96 105 101 122 122 122 177 179 220 Avg Prop Armor Cover (%) 7 | . . . 14 . . 4 4 4 7 7 . . . . . . . . . . . . . 3 14 Naked Turns . | . . . . . . . . . . . . . . . . . . . . . . . . . . Heaviest Build 154 | 12 14 20 38 42 36 46 36 38 60 58 58 58 58 71 65 67 92 87 100 100 100 116 129 134 154 Greatest Support 188 | 20 40 46 69 54 54 54 36 54 54 68 68 68 68 100 100 100 100 109 100 100 100 133 140 188 188 Greatest Overweight (x) 2 | . . . 1 . . 1 . 1 2 1 . . . 1 . . . . 1 . . 1 1 . 1 Average Overweight (x) . | . . . . . . . . . . . . . . . . . . . . . . . . . . Largest Inventory Capacity 20 | 8 8 8 10 10 10 15 15 15 15 15 15 15 15 15 15 15 15 15 15 15 15 20 20 20 20 Average Capacity 14 | 7 8 8 9 10 10 12 15 15 15 15 15 15 15 15 15 15 15 15 15 15 15 16 20 20 18 Most Carried 20 | 7 8 8 10 10 10 11 11 13 15 15 15 15 15 15 15 15 15 15 15 15 15 20 20 20 20 Average Carried 13 | 5 7 7 8 9 9 10 11 12 14 14 14 14 14 14 14 14 14 13 14 14 15 15 18 19 16 Final Capacity 20 | 8 8 8 10 10 10 15 15 15 15 15 15 15 15 15 15 15 15 15 15 15 15 20 20 20 5 Final Carried 20 | 6 8 8 9 10 10 11 11 13 14 15 14 15 15 13 15 15 13 15 15 15 15 18 19 20 4 Class Distribution -------------------- 40% | Scavenger-Tank 18% | Scavenger-Gunner 14% | Scavenger-Executioner 11% | Mutant 6% | Scavenger-Skirmisher Dominant Class ---------------- Mutant | -10/Materials Mutant | -10/Subcaves Scavenger-Gunner | -8/Materials Scavenger-Tank | -7/Factory Scavenger-Tank | -7/Lower Caves Scavenger-Tank | -7/Lower Caves Scavenger-Tank | -7/Data Miner Scavenger-Tank | -6/Proximity Caves Scavenger-Tank | -6/Factory Scavenger-Gunner | -6/Lower Caves Scavenger-Gunner | -6/Lower Caves Scavenger-Gunner | -6/Zion Scavenger-Gunner | -5/Proximity Caves Scavenger-Tank | -5/Factory Scavenger-Tank | -5/Waste Scavenger-Tank | -5/Factory Scavenger-Gunner | -4/Factory Scavenger-Skirmisher | -4/Extension Scavenger-Mutant | -4/Cetus Scavenger-Tank | -4/Archives Scavenger-Tank | -4/Hub_04(d) Scavenger-Tank | -3/Research Scavenger-Executioner | -2/Research Scavenger-Executioner | -2/Testing Scavenger-Executioner | -1/Access Resources | -11 -10 -10 -8 -7 -7 -7 -7 -6 -6 -6 -6 -6 -5 -5 -5 -5 -4 -4 -4 -4 -4 -3 -2 -2 -1 ----------- Run | Yrd Mat Sub Mat Fac Low Low Dat Pro Fac Low Low Zio Pro Fac Was Fac Fac Ext Cet Arc Hub Res Res Tes Acc Matter Collected 10666 | 173 71 407 1363 349 507 432 . 134 1197 20 10 60 179 403 357 374 125 125 365 63 321 1258 354 695 1324 Remotely . | . . . . . . . . . . . . . . . . . . . . . . . . . . Salvage Created 20189 | . 144 279 2235 349 420 310 . 286 1807 . 315 . 879 714 1150 1987 703 1195 66 99 703 2037 1461 1545 1505 Parts 842 | . 16 22 161 17 20 17 . 14 82 . 8 . 28 43 4 82 22 35 2 1 20 67 58 67 56 Haulers Intercepted 15 | . . . 5 1 . . . . 1 . . . . . . 4 . . . . . 1 . 1 2 Recyclers Shooed 8 | . . . 1 . . . . . 1 . . . 2 . . 1 . 2 . . . . . 1 . Parts Field Recycled . | . . . . . . . . . . . . . . . . . . . . . . . . . . Retrieved Matter . | . . . . . . . . . . . . . . . . . . . . . . . . . . Parts Self-Destructed 94 | . . 4 . . 18 17 . 10 . 1 7 4 33 . . . . . . . . . . . . Prevented 1 | . . . . . . 1 . . . . . . . . . . . . . . . . . . . Parts Restored . | . . . . . . . . . . . . . . . . . . . . . . . . . . Kills | -11 -10 -10 -8 -7 -7 -7 -7 -6 -6 -6 -6 -6 -5 -5 -5 -5 -4 -4 -4 -4 -4 -3 -2 -2 -1 ------- Run | Yrd Mat Sub Mat Fac Low Low Dat Pro Fac Low Low Zio Pro Fac Was Fac Fac Ext Cet Arc Hub Res Res Tes Acc Combat Hostiles Destroyed 320 | . 7 13 54 6 9 9 . 8 18 . 4 . 15 12 5 30 8 18 2 2 2 29 20 15 34 Melee 1 | . . . . . . . . . . . . . 1 . . . . . . . . . . . . Guns 191 | . 7 4 21 6 8 9 . 6 11 . 3 . 6 7 . 14 7 16 . . 2 28 15 15 6 Cannons 22 | . . . 6 . . . . . 1 . . . . . . . . . 2 2 . . 1 . 10 AOE 95 | . . 9 27 . 1 . . 2 6 . . . 7 4 5 16 . . . . . . 3 . 15 Classes Destroyed 31 | . 2 3 13 . 2 . . 2 . . . . . . 1 2 . 1 . . . 3 . 1 1 Worker 13 | . . . 4 . . . . . 3 . . . . 1 . 1 . . . . . . 1 . 3 Builder 17 | . . . 4 . . . . . 6 . . . 1 . . . . 1 . . 1 . 1 2 1 Tunneler 4 | . . . . . . . . . . . . . . . . 3 . . . . . 1 . . . Hauler 15 | . . . 5 1 . . . . 1 . . . . . . 4 . . . . . 1 . 1 2 Recycler 16 | . . . 3 1 . . . . 6 . . . 1 . . 1 2 . . . 2 . . . . Mechanic 1 | . . . . . . . . . . . . . . . . 1 . . . . . . . . . Operator 7 | . . . 2 . . . . . . . . . . 2 . . 1 . . . . . 1 1 . Drone 3 | . . . . . . . . 2 . . . . 1 . . . . . . . . . . . . Watcher 16 | . . . 3 1 . . . . 1 . . . 2 . . 2 . . 1 . 1 . 2 2 1 Swarmer 73 | . 5 1 11 3 4 6 . 1 7 . . . 4 4 . 13 . . . . . 4 1 . 9 Cutter 3 | . . . 3 . . . . . . . . . . . . . . . . . . . . . . Grunt 98 | . 2 . 19 3 3 2 . 1 6 . 3 . 4 . . 14 4 7 . . . 12 7 1 10 Brawler 7 | . . . 2 . . 1 . 1 1 . . . 2 . . . . . . . . . . . . Duelist 7 | . . . 3 . 1 . . 1 . . . . . . . . . 1 . . . 1 . . . Protector 2 | . . . 2 . . . . . . . . . . . . . . . . . . . . . . Researcher 2 | . . . . . . . . . . . . . . . . . . . . . . . . 2 . Sentry 32 | . . 1 8 . . . . 1 2 . . . 3 3 . 1 . 6 . 2 2 2 . . 1 Demolisher 4 | . . . . . . . . . . . . . . . . . . . . . . 4 . . . Specialist 4 | . . . 4 . . . . . . . . . . . . . . . . . . . . . . Hunter 17 | . . . 1 . . . . . . . 1 . . 2 1 . . . . . . . 2 4 6 Programmer 40 | . . . . . . . . 1 2 . . . 1 3 . 2 4 2 . . . 1 9 10 5 Heavy 2 | . . . 1 . . . . . . . . . . . . . . . . . . . . . 1 Q-Series 2 | . . . . . . . . . . . . . . . . . . . . . . . . . 2 Behemoth 2 | . . . . . . . . . . . . . . . . . . 1 . . . . 1 . . Compactor 5 | . . . . . . . . . . . . . . . 5 . . . . . . . . . . Cetus Guard 2 | . . . . . . . . . . . . . . . . . . . 2 . . . . . . Enhanced Grunt 1 | . . . . . . . . . . . . . . . . . . . . . 1 . . . . Striker 4 | . . . . . . . . . . . . . . . . . . . . . . 4 . . . Executioner 1 | . . . . . . . . . . . . . . . . . . . . . . 1 . . . Subdweller 11 | . . 11 . . . . . . . . . . . . . . . . . . . . . . . Scientist 1 | . . 1 . . . . . . . . . . . . . . . . . . . . . . . Decomposer 2 | . . . . . 2 . . . . . . . . . . . . . . . . . . . . Samaritan 3 | . . . . . 2 . . . . . 1 . . . . . . . . . . . . . . Thief 1 | . . . . . 1 . . . . . . . . . . . . . . . . . . . . Thug 2 | . . . . . . . . . . . . . . . . 1 . 1 . . . . . . . Butcher 1 | . . . . . . . . . . . . . . . . 1 . . . . . . . . . Guerrilla 4 | . . . . . . . . . . . . . . . . . . . . . 4 . . . . Best Kill Streak 15 | . 3 3 15 4 4 3 . 5 8 . 2 . 5 7 3 11 5 3 2 2 2 6 6 4 11 Combat Bots Only 13 | . 3 3 13 3 4 3 . 5 4 . 2 . 4 4 3 8 3 3 2 2 1 6 5 4 10 Max Kills in Single Turn 5 | . 1 3 5 1 1 1 . 2 4 . 1 . 3 3 2 5 2 2 1 1 4 2 2 1 3 Gunslinging 1 | . . . 1 . . . . . . . . . . . . 1 1 . . . . 1 1 . . Exploded 4 | . . 3 4 . 1 . . 1 2 . . . 3 3 2 4 . . . . . . 2 . 3 Melee 1 | . . . . . . . . . . . . . 1 . . . . . . . . . . . . Uniques/NPCs Destroyed . | . . . . . . . . . . . . . . . . . . . . . . . . . . Combat | -11 -10 -10 -8 -7 -7 -7 -7 -6 -6 -6 -6 -6 -5 -5 -5 -5 -4 -4 -4 -4 -4 -3 -2 -2 -1 -------- Run | Yrd Mat Sub Mat Fac Low Low Dat Pro Fac Low Low Zio Pro Fac Was Fac Fac Ext Cet Arc Hub Res Res Tes Acc Hostile Shots Fired 1937 | . 34 42 183 17 20 34 . 32 101 1 23 . 28 91 . 102 36 77 26 2 33 111 182 107 655 Missed 753 | . 13 10 59 6 5 12 . 8 34 . 9 . 7 28 . 24 8 27 9 2 15 52 80 35 310 Hits 1184 | . 21 32 124 11 15 22 . 24 67 1 14 . 21 63 . 78 28 50 17 . 18 59 102 72 345 Melee 7 | . . . 2 . 4 . . . . . . . . . . . . . . . . 1 . . . Projectile 1177 | . 21 32 122 11 11 22 . 24 67 1 14 . 21 63 . 78 28 50 17 . 18 58 102 72 345 AOE 6 | . . . . . . . . . . . . . . . . . . 1 . . . 4 . . 1 Critical Strikes 59 | . . 1 10 . . . . . 3 . . . . 2 . 3 2 5 1 . 3 4 5 3 17 Part Disruptions 1 | . . . . . . . . . . . . . . . . . . . . . . . . . 1 Damage Taken 24965 | . 205 752 2405 162 270 326 . 261 904 16 229 . 493 1186 195 1660 570 1070 326 . 468 1434 2066 1421 8546 Core 3801 | . 18 207 468 17 16 35 . 35 53 16 33 . 56 67 17 186 182 172 . . 116 138 297 72 1600 Absorbed by Shields 268 | . . . . . . . . . . . . . . . . . . 131 137 . . . . . . Ignored by Resistances 515 | . . . . . . . . . . . . . . . . . . . . . 24 242 75 174 . Regen/Repaired (Parts) 1475 | . . . 278 . . . . . 254 . . . . . 158 541 197 . . . . 47 . . . Core Remaining (%) 65 | 100 . 10 14 . . . . 85 . . . . 81 . . 73 . . . . 59 89 . 74 . Volleys Fired 837 | . 32 39 114 19 24 25 . 15 71 . 10 . 26 46 10 51 16 42 19 5 17 47 48 78 83 Largest 6 | . 2 2 3 4 4 4 . 4 4 . 4 . 4 4 3 4 4 4 3 2 4 5 6 6 6 Hottest 609 | . 40 60 177 100 100 100 . 111 320 . 320 . 320 310 225 324 381 381 191 110 345 609 543 492 422 Shots Fired 2507 | . 64 52 280 73 86 100 . 53 221 . 36 . 87 134 12 169 60 153 37 10 43 209 187 266 175 Gun 2241 | . 64 37 232 73 83 100 . 50 203 . 36 . 83 121 3 162 60 153 8 . 14 209 174 260 116 Cannon 178 | . . . 27 . . . . . 14 . . . . 11 . 1 . . 29 10 29 . 9 . 48 Launcher 81 | . . 15 21 . 3 . . 3 4 . . . 4 2 9 6 . . . . . . 4 . 10 Special 7 | . . . . . . . . . . . . . . . . . . . . . . . . 6 1 Kinetic 908 | . 64 37 200 73 83 100 . 50 174 . . . . 11 . 1 . . 29 10 23 . 9 . 44 Thermal 1503 | . . . 59 . . . . . 43 . 36 . 83 121 3 162 60 153 8 . 20 209 174 252 120 Explosive 81 | . . 15 21 . 3 . . 3 4 . . . 4 2 9 6 . . . . . . 4 . 10 Electromagnetic 8 | . . . . . . . . . . . . . . . . . . . . . . . . 8 . Robot Hit Streak 34 | . 5 15 14 16 11 12 . 6 21 . 17 . 34 10 11 9 17 25 15 5 11 20 16 13 19 Robot Miss Streak 9 | . 5 1 4 5 9 6 . 6 3 . 2 . 2 3 6 6 2 6 3 1 3 8 5 7 5 Penetration Max 1 | . . . . . . . . . 1 . . . . . . . . . . . . . . . . Secondary Targets 47 | . 2 . 4 2 1 4 . . 2 . . . . . . 6 3 4 . . . 12 3 3 1 Max Gunslinging Chain 2 | . 1 . 1 1 1 1 . . 1 . . . . . . 1 1 1 . . . 2 1 1 1 Shots Hit Robots 1479 | . 27 35 183 38 46 47 . 19 144 . 23 . 54 67 10 95 41 108 28 8 24 140 101 141 100 Core Hits 918 | . 13 28 114 13 21 17 . 13 68 . 18 . 65 27 21 82 33 72 15 5 23 87 69 52 62 Critical Kills 13 | . . . . . . . . . 3 . . . 1 2 . . . 1 . . . 5 . 1 . Critical Parts Destroyed 17 | . 1 . 1 . . 1 . . 5 . . . 2 . . . . 2 . . . 4 1 . . Critical Strikes 74 | . 1 1 6 . . 1 . . 9 . . . 4 6 1 12 . 4 4 . 1 12 1 3 8 Burn 25 | . . . 5 . . . . . . . . . . 3 1 12 . . 1 . . . . 2 1 Destroy 36 | . 1 1 1 . . 1 . . 8 . . . 4 2 . . . 4 . . . 12 1 1 . Blast 13 | . . . . . . . . . 1 . . . . 1 . . . . 3 . 1 . . . 7 Melee Attacks . | . . . . . . . . . . . . . . . . . . . . . . . . . . Impact . | . . . . . . . . . . . . . . . . . . . . . . . . . . Slashing . | . . . . . . . . . . . . . . . . . . . . . . . . . . Piercing . | . . . . . . . . . . . . . . . . . . . . . . . . . . Sneak Attacks . | . . . . . . . . . . . . . . . . . . . . . . . . . . Combat Hostiles . | . . . . . . . . . . . . . . . . . . . . . . . . . . Follow-up Attacks . | . . . . . . . . . . . . . . . . . . . . . . . . . . Damage Inflicted 58188 | . 280 1763 6224 664 1008 826 . 511 4272 . 664 . 2469 1996 2656 4294 1816 3983 1075 356 1800 4332 4203 4290 8706 Guns 35842 | . 269 488 2887 664 792 826 . 345 3049 . 664 . 1697 1603 64 2463 1816 3883 159 . 362 4305 3150 4287 2069 Cannons 5621 | . . . 358 . . . . . 138 . . . . 73 . . . . 916 356 408 . 273 . 3099 Explosions 16344 | . . 1275 2955 . 187 . . 166 1074 . . . 699 320 2592 1808 . . . . 1030 . 749 . 3489 Melee . | . . . . . . . . . . . . . . . . . . . . . . . . . . Ramming 381 | . 11 . 24 . 29 . . . 11 . . . 73 . . 23 . 100 . . . 27 31 3 49 Kinetic 12766 | . 269 488 2490 664 792 826 . 345 2153 . . . . 73 . . . . 916 356 372 . 273 . 2749 Thermal 29313 | . . . 1095 . . . . . 1324 . 664 . 1697 1603 64 2463 1816 3883 159 . 398 4305 3150 4194 2498 Explosive 14605 | . . 1275 2615 . 187 . . 166 784 . . . 699 320 2592 1808 . . . . . . 749 . 3410 Electromagnetic 1123 | . . . . . . . . . . . . . . . . . . . . . 1030 . . 93 . Impact . | . . . . . . . . . . . . . . . . . . . . . . . . . . Slashing . | . . . . . . . . . . . . . . . . . . . . . . . . . . Piercing . | . . . . . . . . . . . . . . . . . . . . . . . . . . Highest Corruption 20 | . . . . . . . . 2 1 1 1 1 . 2 2 3 4 19 19 19 20 5 4 12 10 Average Corruption 6 | . . . . . . . . 1 1 1 1 1 . 1 2 2 2 9 19 19 19 4 1 7 8 Corruption Purged 5 | . . . . . . . . . . . . . . . . . . . . . . 5 . . . Corruption Blocked . | . . . . . . . . . . . . . . . . . . . . . . . . . . Effects 251 | . . . . . . . . 2 8 3 4 . . 1 5 20 2 33 24 2 19 45 4 48 31 Message Errors 58 | . . . . . . . . . 2 2 2 . . . 2 6 . 8 4 1 3 10 1 12 5 Matter Fused 56 | . . . . . . . . . . . . . . 1 1 6 . 4 9 1 6 9 . 15 4 Heat Flow Errors 28 | . . . . . . . . 1 . . 1 . . . 1 3 . 3 2 . 3 7 1 4 2 Energy Discharges 37 | . . . . . . . . 1 1 1 . . . . . 1 . 9 4 . 1 5 1 6 7 Parts Rejected 5 | . . . . . . . . . 1 . . . . . . 1 . . . . . 1 . . 2 Parts Fused 4 | . . . . . . . . . . . . . . . . . . . 1 . . . . 1 2 Data Loss (minor) 21 | . . . . . . . . . 1 . 1 . . . . 1 2 2 2 . 1 5 . 3 3 Data Loss (major) 12 | . . . . . . . . . . . . . . . 1 . . 2 . . 1 6 . 2 . Misfires 11 | . . . . . . . . . 3 . . . . . . 1 . 1 . . 1 2 . 2 1 Alerts 4 | . . . . . . . . . . . . . . . . . . 3 . . . . . 1 . Misdirections 6 | . . . . . . . . . . . . . . . . . . . 1 . 1 . . . 4 Weapon Failures 9 | . . . . . . . . . . . . . . . . 1 . 1 1 . 2 . 1 2 1 Overload Shots 10 | . . . . . . . . . . . . . . . . . . . . . . 3 . 1 6 Overflow Damage 1176 | . . 37 83 . 50 . . . 233 . . . . 27 . 74 . . . 2 56 4 13 . 597 Projectiles 467 | . . . . . . . . . 7 . . . . . . . . . . 2 . . . . 458 Explosions 698 | . . 37 83 . 46 . . . 226 . . . . 27 . 74 . . . . 56 . 10 . 139 Melee 11 | . . . . . 4 . . . . . . . . . . . . . . . . 4 3 . . Knockbacks 30 | . . . . . . . . . 2 . . . 1 1 . . . 1 2 1 2 . 1 . 19 Impact 2 | . . . . . . . . . . . . . 1 . . . . 1 . . . . . . . Kinetic 24 | . . . . . . . . . 2 . . . . 1 . . . . 2 1 2 . 1 . 15 Secondary 4 | . . . . . . . . . . . . . . . . . . . . . . . . . 4 Self-Inflicted Damage 976 | . . 88 227 . 66 . . 2 . . . . 90 . 200 146 . . . . 113 . 22 . 22 Shots 32 | . . 3 7 . 2 . . 1 . . . . 3 . 9 3 . . . . 2 . 1 . 1 Rammed 4 | . 2 . . . . . . . . . . . . . . . . . . . . . . . 2 Targets Rammed 49 | . 2 . 5 . 13 . . . 2 . . . 10 . . 1 . 9 . . . 2 1 1 3 Kicked 43 | . . . 3 . 13 . . . 2 . . . 10 . . 1 . 9 . . . 2 1 1 1 Crushed 2 | . . . 2 . . . . . . . . . . . . . . . . . . . . . . Highest Temperature 313 | . 26 3 313 175 299 210 . 245 191 . 163 . . 228 1 196 . 242 14 . 21 234 222 246 306 Average Temperature 75 | . 5 2 59 64 96 87 . 77 67 . 134 . . 104 1 82 . 165 14 . 21 85 56 108 109 Received Heat Transfer 3494 | . 78 162 747 72 45 . . 45 255 . 51 . 81 27 . 432 154 541 9 . 45 183 189 . 378 Effects 4 | . . . 3 . . . . . . . . . . . . . . . . . . . . . 1 Energy Bleed 1 | . . . . . . . . . . . . . . . . . . . . . . . . . 1 Interference 3 | . . . 3 . . . . . . . . . . . . . . . . . . . . . . Siege Activations . | . . . . . . . . . . . . . . . . . . . . . . . . . . Martial Activations . | . . . . . . . . . . . . . . . . . . . . . . . . . . Shielding Activations . | . . . . . . . . . . . . . . . . . . . . . . . . . . Robots Disrupted . | . . . . . . . . . . . . . . . . . . . . . . . . . . Combat Hostiles . | . . . . . . . . . . . . . . . . . . . . . . . . . . Robots Corrupted 7 | . . . . . 2 . . . . . . . . . . . . . . . 2 1 1 1 . Combat Hostiles 1 | . . . . . . . . . . . . . . . . . . . . . . . . 1 . Parts Fried 12 | . . . . . . . . . . . . . . . . . . . . . 7 3 1 1 . Impact Corruptions 8 | . . . . . 5 . . . . . . . . . . . . . . . . 1 1 . 1 Robots Melted 12 | . . . . . . . . . . . 1 . 1 1 . . 1 2 . . . 2 1 . 3 Combat Hostiles 11 | . . . . . . . . . . . 1 . 1 1 . . 1 2 . . . 1 1 . 3 Parts Melted 158 | . . 1 4 . . . . . 2 . . . 8 24 . 17 7 13 . . . 13 17 34 18 Heat Transferred 43649 | . . . 1802 . . . . . 1890 . 1158 . 3052 2957 198 4699 2310 6320 333 . 600 6284 3543 5318 3185 Parts Sabotaged . | . . . . . . . . . . . . . . . . . . . . . . . . . . Parts Stolen 2 | . . . . . 2 . . . . . . . . . . . . . . . . . . . . Parts Stripped . | . . . . . . . . . . . . . . . . . . . . . . . . . . Power Chain Reactions 1 | . . . . . . . . . . . . . . . . . . . . . 1 . . . . Alert | -11 -10 -10 -8 -7 -7 -7 -7 -6 -6 -6 -6 -6 -5 -5 -5 -5 -4 -4 -4 -4 -4 -3 -2 -2 -1 ------- Run | Yrd Mat Sub Mat Fac Low Low Dat Pro Fac Low Low Zio Pro Fac Was Fac Fac Ext Cet Arc Hub Res Res Tes Acc Maximum Alert Level 5 | . . . 3 2 . . . . 2 . . . . 1 . 5 4 4 3 2 3 2 2 3 4 Low Security (%) 27 | 100 100 . 36 . . . . . . . . . . 61 100 14 . . . . 6 27 34 26 . Level 1 30 | . . . 18 11 . . . . 93 . . . . 38 . . . . . 22 39 37 64 64 . Level 2 20 | . . . 35 88 . . . . 6 . . . . . . 7 . 47 11 77 48 35 1 3 8 Level 3 12 | . . . 9 . . . . . . . . . . . . 20 51 50 88 . 5 . . 5 35 Level 4 7 | . . . . . . . . . . . . . . . . 27 48 1 . . . . . . 56 Level 5 1 | . . . . . . . . . . . . . . . . 20 . . . . . . . . . High Security . | . . . . . . . . . . . . . . . . 8 . . . . . . . . . Max Security . | . . . . . . . . . . . . . . . . . . . . . . . . . . Sterilizations 1 | . . . 1 . . . . . . . . . . . . . . . . . . . . . . Peak Influence 1645 | . 104 . 990 460 . . . . 427 . . . . 262 111 1645 1176 1234 820 509 918 533 402 800 1378 Initial 1100 | . . . . 450 . . . . 300 . . . . 262 51 . 1100 559 690 306 167 455 297 216 472 Average 451 | . 36 . 363 421 . . . . 299 . . . . 174 34 1098 1102 735 755 451 385 309 252 272 1071 Influence Increases 14482 | . 179 40 1678 180 210 225 . 140 995 . 115 . 566 570 104 2204 286 1191 370 213 911 752 749 1130 1674 Destroy 0b10 Robot/C 7140 | . 140 40 1040 120 160 180 . 120 360 . 80 . 400 240 . 1000 160 540 160 80 160 580 400 480 700 Destroy 0b10 Robot/NC 555 | . . . 115 15 . . . 10 85 . . . 25 15 . 65 15 20 10 . 40 10 25 45 60 Destroy Leader 1328 | . 30 . 236 24 20 30 . 10 84 . 20 . 30 70 . 172 30 66 . . 54 142 84 86 140 Allied During Kill 1577 | . . . . . . . . . . . . . 96 38 . 414 . 453 170 80 249 . . 47 30 Successful Hack 276 | . 9 . 33 6 . . . . 10 . . . . 2 . 4 26 55 1 . 5 4 51 46 24 Disable Machine 810 | . . . 45 . . . . . 75 . . . . 15 . 210 . 30 15 45 105 . 15 240 15 Destroy Structure 1716 | . . . 149 . . . . . 51 . . . . 40 104 324 10 12 14 8 268 16 144 171 405 Advance Influence 450 | . . . . . . . . . 300 . . . . 150 . . . . . . . . . . . Partial Spotted 15 | . . . . . . . . . . . . . . . . . . . . . . . . 15 . Lose Combat Pursuer 615 | . . . 60 15 30 15 . . 30 . 15 . 15 . . 15 45 15 . . 30 . 30 . 300 Influence Decreases 13411 | . 155 64 688 754 443 270 138 140 568 373 154 15 387 601 252 584 1071 1099 838 500 522 1091 894 726 1084 Entered New Map 5085 | . . 12 . 540 155 36 138 . . 159 11 15 . 67 97 . 827 583 544 460 312 413 232 168 316 Time Decay 6726 | . 155 52 618 214 278 214 . 120 478 214 133 . 307 404 125 334 214 386 214 40 170 658 422 518 458 Lost Part 760 | . . . 60 . 10 20 . 20 50 . 10 . . 40 10 20 30 50 . . . 20 90 40 290 Lost Ally 690 | . . . 10 . . . . . 40 . . . 80 90 20 230 . 80 80 . 40 . . . 20 Purge Threat 150 | . . . . . . . . . . . . . . . . . . . . . . . 150 . . Squads Dispatched 71 | . 1 . 9 1 . . . . 4 . . . 1 5 . 9 2 2 . . 4 3 5 10 15 Investigation 8 | . . . 1 . . . . . . . . . 1 . . 2 1 . . . . 2 . . 1 Extermination 12 | . . . . . . . . . 1 . . . . 1 . 1 1 . . . . . 2 4 2 Reinforcement 29 | . 1 . 6 1 . . . . 3 . . . . 1 . 4 . 1 . . 4 1 . 3 4 Assault 10 | . . . 2 . . . . . . . . . . . . 2 . 1 . . . . . . 5 Garrison 12 | . . . . . . . . . . . . . . 3 . . . . . . . . 3 3 3 Intercept . | . . . . . . . . . . . . . . . . . . . . . . . . . . Searches Triggered . | . . . . . . . . . . . . . . . . . . . . . . . . . . Data Miner Redirects 4 | . . . . . . . . . . . . . . . . . . . . . . . . . 4 Construction Impeded 5 | . . . . . . . . . 1 . . . . 1 . . . 1 . . 1 . . . 1 Haulers Reinforced 8 | . . . . 1 . . . . 2 . . . . . . 2 . . . . 1 . . 1 1 Active Scanning Responses . | . . . . . . . . . . . . . . . . . . . . . . . . . . Cargo Convoy Interrupts . | . . . . . . . . . . . . . . . . . . . . . . . . . . Stealth | -11 -10 -10 -8 -7 -7 -7 -7 -6 -6 -6 -6 -6 -5 -5 -5 -5 -4 -4 -4 -4 -4 -3 -2 -2 -1 --------- Run | Yrd Mat Sub Mat Fac Low Low Dat Pro Fac Low Low Zio Pro Fac Was Fac Fac Ext Cet Arc Hub Res Res Tes Acc Distress Signals 23 | . . . 4 1 . . . . 2 . . . 1 1 . 1 . 2 2 . 1 5 1 1 1 Communications Jammed . | . . . . . . . . . . . . . . . . . . . . . . . . . . Distress Signals . | . . . . . . . . . . . . . . . . . . . . . . . . . . Times Spotted 527 | . 19 13 71 11 12 10 . 8 34 5 5 . 21 16 6 47 14 30 10 3 20 50 33 25 64 Peak Tracking Total 10 | . 5 3 9 3 4 3 . 5 5 4 2 . 5 6 3 8 6 4 5 2 8 5 6 3 10 Tactical Retreats 23 | . . . 2 1 2 1 . . 2 . 1 . 1 . . 1 1 1 . . 1 . 2 . 7 Traps | -11 -10 -10 -8 -7 -7 -7 -7 -6 -6 -6 -6 -6 -5 -5 -5 -5 -4 -4 -4 -4 -4 -3 -2 -2 -1 ------- Run | Yrd Mat Sub Mat Fac Low Low Dat Pro Fac Low Low Zio Pro Fac Was Fac Fac Ext Cet Arc Hub Res Res Tes Acc Traps Triggered 12 | . . . 1 . . . . . . . . . . 1 . 2 1 5 . . . . 1 . 1 Indirectly . | . . . . . . . . . . . . . . . . . . . . . . . . . . Trap Hack Attempts . | . . . . . . . . . . . . . . . . . . . . . . . . . . Triggered . | . . . . . . . . . . . . . . . . . . . . . . . . . . Disarmed 3 | . 3 . . . . . . . . . . . . . . . . . . . . . . . . Reprogrammed . | . . . . . . . . . . . . . . . . . . . . . . . . . . Reused . | . . . . . . . . . . . . . . . . . . . . . . . . . . Traps Extracted . | . . . . . . . . . . . . . . . . . . . . . . . . . . Installed 1 | . . . . . . . . . . 1 . . . . . . . . . . . . . . . Triggered . | . . . . . . . . . . . . . . . . . . . . . . . . . . Machines | -11 -10 -10 -8 -7 -7 -7 -7 -6 -6 -6 -6 -6 -5 -5 -5 -5 -4 -4 -4 -4 -4 -3 -2 -2 -1 ---------- Run | Yrd Mat Sub Mat Fac Low Low Dat Pro Fac Low Low Zio Pro Fac Was Fac Fac Ext Cet Arc Hub Res Res Tes Acc Machines Disabled 60 | . . . 3 . 2 . . . 5 . . . 4 1 . 14 . 2 1 3 7 . 1 16 1 Max in Single Turn 4 | . . . 1 . 1 . . . 3 . . . 2 1 . 3 . 1 1 . 4 . 1 1 1 Garrison Access 4 | . . . . . . . . . 1 . . . . . . 1 . . . . . . 1 . 1 Network Hub 1 | . . . . . . . . . . . . . . . . . . . . . 1 . . . . Energy Cycler 1 | . . . . . . . . . . . . . . . . . . . . . . . . . 1 Machines Repaired . | . . . . . . . . . . . . . . . . . . . . . . . . . . Machines Dismantled 1 | . . . . . . . . . . . . . . . . . . . 1 . . . . . . Machines Sabotaged . | . . . . . . . . . . . . . . . . . . . . . . . . . . Overloaded Fab Kills . | . . . . . . . . . . . . . . . . . . . . . . . . . . Hacking | -11 -10 -10 -8 -7 -7 -7 -7 -6 -6 -6 -6 -6 -5 -5 -5 -5 -4 -4 -4 -4 -4 -3 -2 -2 -1 --------- Run | Yrd Mat Sub Mat Fac Low Low Dat Pro Fac Low Low Zio Pro Fac Was Fac Fac Ext Cet Arc Hub Res Res Tes Acc Machines Accessed 81 | . 4 . 9 1 . . 4 . 6 1 . . 3 7 . 7 4 8 1 . 2 8 6 7 3 Terminals 34 | . 2 . 4 1 . . . . 1 1 . . 1 2 . 1 2 6 1 . 2 . 4 5 1 Fabricators 6 | . . . . . . . . . 1 . . . 1 1 . 1 . . . . . 1 . 1 . Repair Stations 6 | . . . 2 . . . . . 1 . . . . 1 . . 1 . . . . 1 . . . Recycling Units 12 | . 2 . 1 . . . . . 1 . . . 1 1 . 1 . 2 . . . 3 . . . Scanalyzers 11 | . . . 2 . . . . . 1 . . . . . . 2 1 . . . . 2 1 1 1 Garrison Access 8 | . . . . . . . . . 1 . . . . 2 . 2 . . . . . 1 1 . 1 Total Hacks 190 | . 9 . 26 5 . . 31 . 12 1 . . 5 10 . 13 6 16 3 . 3 15 12 19 4 Successful 109 | . 7 . 16 3 . . 31 . 9 1 . . 1 3 . 5 3 9 1 . 2 7 4 6 1 Failed 81 | . 2 . 10 2 . . . . 3 . . . 4 7 . 8 3 7 2 . 1 8 8 13 3 Catastrophic 25 | . . . . . . . . . . . . . 1 2 . 4 1 3 . . . 4 3 4 3 Database Lockouts . | . . . . . . . . . . . . . . . . . . . . . . . . . . Manual 39 | . 3 . 10 1 . . . . 3 . . . . 2 . . 3 4 1 . 3 1 1 5 2 Terminals 79 | . 6 . 12 5 . . . . 2 1 . . 2 3 . 1 4 14 3 . 3 . 8 14 1 Fabricators 7 | . . . . . . . . . 1 . . . 1 1 . 1 . . . . . 1 . 2 . Repair Stations 19 | . . . 8 . . . . . 5 . . . . 1 . . 1 . . . . 4 . . . Recycling Units 17 | . 3 . 3 . . . . . 1 . . . 2 1 . 1 . 2 . . . 4 . . . Scanalyzers 24 | . . . 3 . . . . . 2 . . . . . . 5 1 . . . . 5 3 3 2 Garrison Access 13 | . . . . . . . . . 1 . . . . 4 . 5 . . . . . 1 1 . 1 Terminal Hacks 58 | . 3 . 5 2 . . 31 . . 1 . . 1 1 . . 1 6 1 . . . 2 4 . Record 13 | . . . . . . . 11 . . 1 . . . . . . . . 1 . . . . . . Part Schematic 11 | . . . . . . . 11 . . . . . . . . . . . . . . . . . . Robot Schematic 6 | . . . . . . . 6 . . . . . . . . . . . . . . . . . . Prototype ID Bank 11 | . . . 2 . . . 3 . . . . . . . . . 1 3 . . . . . 2 . Open Door 1 | . . . . . . . . . . . . . 1 . . . . . . . . . . . . Level Access Points 1 | . . . 1 . . . . . . . . . . . . . . . . . . . . . . Branch Access Points 4 | . . . 1 1 . . . . . . . . . . . . . . . . . . 1 1 . Emergency Access Points 1 | . . . . . . . . . . . . . . 1 . . . . . . . . . . . Alert Level 4 | . 1 . . . . . . . . . . . . . . . . 2 . . . . . 1 . Unreport Threat 1 | . . . . . . . . . . . . . . . . . . . . . . . 1 . . Locate Traps 2 | . 1 . . 1 . . . . . . . . . . . . . . . . . . . . . Disarm Traps 1 | . 1 . . . . . . . . . . . . . . . . . . . . . . . . Zone Layout 2 | . . . 1 . . . . . . . . . . . . . . 1 . . . . . . . Fabricator Hacks . | . . . . . . . . . . . . . . . . . . . . . . . . . . Repair Station Hacks 13 | . . . 6 . . . . . 4 . . . . . . . . . . . . 3 . . . Scan Component 7 | . . . 3 . . . . . 2 . . . . . . . . . . . . 2 . . . Repair 6 | . . . 3 . . . . . 2 . . . . . . . . . . . . 1 . . . Recycling Unit Hacks 4 | . 2 . . . . . . . . . . . . 1 . . . 1 . . . . . . . Retrieve Components 4 | . 2 . . . . . . . . . . . . 1 . . . 1 . . . . . . . Scanalyzer 16 | . . . 2 . . . . . 2 . . . . . . 5 1 . . . . 4 . 1 1 Insert Component 1 | . . . 1 . . . . . . . . . . . . . . . . . . . . . . Retrieve Study 15 | . . . 1 . . . . . 2 . . . . . . 5 1 . . . . 4 . 1 1 Garrison Access Hacks 2 | . . . . . . . . . 1 . . . . . . . . . . . . . 1 . . Seal Access 2 | . . . . . . . . . 1 . . . . . . . . . . . . . 1 . . Unauthorized Hacks 16 | . 2 . 3 1 . . . . 2 . . . . 1 . . 1 2 . . 2 . 1 1 . Terminals 12 | . 2 . 2 1 . . . . 1 . . . . . . . . 2 . . 2 . 1 1 . Assimilate 1 | . 1 . . . . . . . . . . . . . . . . . . . . . . . . Botnet 11 | . 1 . 2 1 . . . . 1 . . . . . . . . 2 . . 2 . 1 1 . Fabricators 2 | . . . . . . . . . 1 . . . . 1 . . . . . . . . . . . Liberate 2 | . . . . . . . . . 1 . . . . 1 . . . . . . . . . . . Repair Stations 2 | . . . 1 . . . . . . . . . . . . . 1 . . . . . . . . Patch 2 | . . . 1 . . . . . . . . . . . . . 1 . . . . . . . . Recycling Units . | . . . . . . . . . . . . . . . . . . . . . . . . . . Scanalyzers . | . . . . . . . . . . . . . . . . . . . . . . . . . . Garrison Access . | . . . . . . . . . . . . . . . . . . . . . . . . . . Data Cores Recovered 3 | . . . . . . . . . . . . . . . . . 1 . . . . . 1 1 . Used 2 | . . . . . . . . . . . . . . . . . 1 . . . . . 1 . . Hacking Detections 65 | . 2 . 6 1 . . . . 5 . . . 2 7 . 7 3 7 1 . 2 7 5 7 3 Full Trace Events 2 | . . . 1 . . . . . . . . . . . . 1 . . . . . . . . . Feedback Events 1 | . . . . . . . . . . . . . . . . 1 . . . . . . . . . Corruption 1 | . . . . . . . . . . . . . . . . 1 . . . . . . . . . Feedback Blocked . | . . . . . . . . . . . . . . . . . . . . . . . . . . Robot Schematics Acquired 7 | . . . . . . . 6 . . . . . . . . . . . . . . . . 1 . Robots Built . | . . . . . . . . . . . . . . . . . . . . . . . . . . Authchips . | . . . . . . . . . . . . . . . . . . . . . . . . . . Time . | . . . . . . . . . . . . . . . . . . . . . . . . . . Total Robot Build Rating . | . . . . . . . . . . . . . . . . . . . . . . . . . . Part Schematics Acquired 14 | . . . . . . . 11 . . . . . . . . . . . . . . . . 3 . Parts Built . | . . . . . . . . . . . . . . . . . . . . . . . . . . Authchips . | . . . . . . . . . . . . . . . . . . . . . . . . . . Time . | . . . . . . . . . . . . . . . . . . . . . . . . . . Total Part Build Rating . | . . . . . . . . . . . . . . . . . . . . . . . . . . Part Studies Acquired 15 | . . . 1 . . . . . 2 . . . . . . 5 1 . . . . 4 . 1 1 Parts Repaired 6 | . . . 3 . . . . . 2 . . . . . . . . . . . . 1 . . . Time 274 | . . . 120 . . . . . 104 . . . . . . . . . . . . 50 . . . Parts Recycled . | . . . . . . . . . . . . . . . . . . . . . . . . . . Recycled Matter . | . . . . . . . . . . . . . . . . . . . . . . . . . . Retrieved Matter . | . . . . . . . . . . . . . . . . . . . . . . . . . . Retrieved Components 15 | . 8 . . . . . . . . . . . . 1 . . . 6 . . . . . . . Parts Scanalyzed . | . . . . . . . . . . . . . . . . . . . . . . . . . . Part Schematics Acquired . | . . . . . . . . . . . . . . . . . . . . . . . . . . Parts Damaged . | . . . . . . . . . . . . . . . . . . . . . . . . . . Bothacking | -11 -10 -10 -8 -7 -7 -7 -7 -6 -6 -6 -6 -6 -5 -5 -5 -5 -4 -4 -4 -4 -4 -3 -2 -2 -1 ------------ Run | Yrd Mat Sub Mat Fac Low Low Dat Pro Fac Low Low Zio Pro Fac Was Fac Fac Ext Cet Arc Hub Res Res Tes Acc Used RIF Installer . | . . . . . . . . . . . . . . . . . . . . . . . . . . Robots Hacked 1 | . . . . . . . . . . . . . . . . . . . . . . . . 1 . Non-combat . | . . . . . . . . . . . . . . . . . . . . . . . . . . Combat 1 | . . . . . . . . . . . . . . . . . . . . . . . . 1 . Robot Hacks Applied 1 | . . . . . . . . . . . . . . . . . . . . . . . . 1 . parse_system 1 | . . . . . . . . . . . . . . . . . . . . . . . . 1 . Relay Couplers Released 7 | . . . . . . . . . . . . . . . . 4 . . . . . . . . 3 Machine Destruction 7 | . . . . . . . . . . . . . . . . 4 . . . . . . . . 3 Fabnet Peak Effective % . | . . . . . . . . . . . . . . . . . . . . . . . . . . Robots Rewired 21 | . . . . . . . . . . . . . 11 . . . . 9 . . . . . 1 . Allies Hacked 2 | . . . . . . . . . . . . . . . . . . 2 . . . . . . . Hacks Repelled . | . . . . . . . . . . . . . . . . . . . . . . . . . . Allies | -11 -10 -10 -8 -7 -7 -7 -7 -6 -6 -6 -6 -6 -5 -5 -5 -5 -4 -4 -4 -4 -4 -3 -2 -2 -1 -------- Run | Yrd Mat Sub Mat Fac Low Low Dat Pro Fac Low Low Zio Pro Fac Was Fac Fac Ext Cet Arc Hub Res Res Tes Acc Total Allies 59 | . 1 . . . . . . . . . . . 11 2 19 . . 20 5 . . . . 1 . Largest Group 20 | . 1 1 1 . . . . . . . . . 6 2 20 19 . 14 14 11 10 . . 1 1 Highest-Rated Group 993 | . 10 10 10 . . . . . . . . . 206 82 743 718 . 725 993 813 670 . . 123 123 Highest-Rated Ally 159 | . 10 10 10 . . . . . . . . . 43 41 50 50 . 159 143 143 96 . . 123 123 Total Orders 6 | . . . . . . . . . 1 . . . 1 4 . . . . . . . . . . . STAY 1 | . . . . . . . . . . . . . 1 . . . . . . . . . . . . EXPLORE 5 | . . . . . . . . . 1 . . . . 4 . . . . . . . . . . . Ally Attacks 365 | . . . . . . . . . . . . . 26 1 30 86 . 103 42 30 35 . . 6 6 Total Damage 15023 | . . . . . . . . . . . . . 543 21 774 4399 . 2659 760 876 1960 . . 1646 1385 Kills 82 | . . . . . . . . . . . . . 6 . 1 24 . 14 8 2 12 . . 9 6 Allies Corrupted 5 | . . . . . . . . . . . . . . . . 1 . 2 . . 1 . . . 1 Allies Melted 1 | . . . . . . . . . . . . . . . . 1 . . . . . . . . . Intel | -11 -10 -10 -8 -7 -7 -7 -7 -6 -6 -6 -6 -6 -5 -5 -5 -5 -4 -4 -4 -4 -4 -3 -2 -2 -1 ------- Run | Yrd Mat Sub Mat Fac Low Low Dat Pro Fac Low Low Zio Pro Fac Was Fac Fac Ext Cet Arc Hub Res Res Tes Acc Active Infowar (turns) 18056 | . . . 1645 458 614 449 93 351 1237 450 412 886 971 962 460 909 442 914 440 86 343 2469 1032 1436 997 Optics 18056 | . . . 1645 458 614 449 93 351 1237 450 412 886 971 962 460 909 442 914 440 86 343 2469 1032 1436 997 Sensors 1558 | . . . . . . . . . . . . . . . . . . . . . . . . 1086 472 Jamming 2 | . . . . . . . . . . . . . . . . . . . . . . 2 . . . Robot Analysis Total . | . . . . . . . . . . . . . . . . . . . . . . . . . . Derelict Logs Recovered 7 | . . . . . 3 1 . . . 1 . 1 1 . . . . . . . . . . . . Drone Launches 11 | . . . . . . . . . 4 . . . . 7 . . . . . . . . . . . Drone Recoveries 2 | . . . . . . . . . . . . . . 2 . . . . . . . . . . . Exploration | -11 -10 -10 -8 -7 -7 -7 -7 -6 -6 -6 -6 -6 -5 -5 -5 -5 -4 -4 -4 -4 -4 -3 -2 -2 -1 ------------- Run | Yrd Mat Sub Mat Fac Low Low Dat Pro Fac Low Low Zio Pro Fac Was Fac Fac Ext Cet Arc Hub Res Res Tes Acc Turns Passed 20886 | 65 624 1377 2261 458 614 449 93 351 1237 450 412 886 971 962 460 909 442 914 440 86 343 2469 1032 1436 1145 Spaces Moved 13615 | 50 327 779 1246 312 445 295 78 260 529 332 311 738 488 589 329 572 286 522 265 45 246 1883 747 962 979 Core 300 | 16 . . . . . . . . . . . . . . . . . . . . . . . . 284 Treads 1398 | . 300 779 299 . . . . . 20 . . . . . . . . . . . . . . . . Legs 11917 | 34 27 . 947 312 445 295 78 260 509 332 311 738 488 589 329 572 286 522 265 45 246 1883 747 962 695 Wheels . | . . . . . . . . . . . . . . . . . . . . . . . . . . Hover . | . . . . . . . . . . . . . . . . . . . . . . . . . . Flight . | . . . . . . . . . . . . . . . . . . . . . . . . . . Fastest Speed 50 | 50 120 160 120 120 120 120 120 120 115 116 116 116 116 114 114 108 108 105 105 105 105 92 92 96 50 Average Speed 115 | 97 156 160 130 120 120 120 120 121 157 133 116 116 116 117 114 108 108 110 105 105 105 101 95 98 85 Slowest Speed 260 | 120 160 160 190 120 120 190 120 190 260 185 116 116 116 190 114 114 108 111 175 105 105 173 169 103 185 Overloaded Moves . | . . . . . . . . . . . . . . . . . . . . . . . . . . Propulsion Burnouts . | . . . . . . . . . . . . . . . . . . . . . . . . . . Robots Hopped . | . . . . . . . . . . . . . . . . . . . . . . . . . . Potential Cave-ins . | . . . . . . . . . . . . . . . . . . . . . . . . . . Cave-ins Triggered . | . . . . . . . . . . . . . . . . . . . . . . . . . . Exploration Rate (%) 50 | 4 54 50 77 8 72 53 72 52 21 58 56 85 45 29 95 19 12 79 86 83 24 48 23 75 26 Regions Visited 25 Branch Regions 14 Pre-discovered Areas 5 | . . 1 . . 1 . 1 . . . . 2 . . . . . . . . . . . . . Known Exits Taken 5 | . . . 1 1 . . . . . . . . . . . 1 . . . . . . 1 1 . Unknown Exits Taken 18 | 1 1 1 . . 1 1 1 1 1 1 1 1 1 . . . 1 1 1 1 1 1 . . . Scrap Searched 17 | . . 6 . . 1 2 . . . 4 . 1 3 . . . . . . . . . . . . Spaces Dug 76 | . . 2 19 . . . . . 11 . . . . 6 . 7 . . . . 5 2 12 3 9 Terrain Destroyed 1002 | . . 73 183 . 28 . . 16 47 . 6 . 3 18 142 134 5 . 2 1 181 6 45 16 96 Melee . | . . . . . . . . . . . . . . . . . . . . . . . . . . Projectile 107 | . . 2 10 . . . . . 7 . 6 . 3 7 . 2 5 . 2 1 10 6 10 16 20 AOE 895 | . . 71 173 . 28 . . 16 40 . . . . 11 142 132 . . . . 171 . 35 . 76 Terrain Rammed . | . . . . . . . . . . . . . . . . . . . . . . . . . . Walls Destroyed . | . . . . . . . . . . . . . . . . . . . . . . . . . . Machines Disabled . | . . . . . . . . . . . . . . . . . . . . . . . . . . Actions | -11 -10 -10 -8 -7 -7 -7 -7 -6 -6 -6 -6 -6 -5 -5 -5 -5 -4 -4 -4 -4 -4 -3 -2 -2 -1 --------- Run | Yrd Mat Sub Mat Fac Low Low Dat Pro Fac Low Low Zio Pro Fac Was Fac Fac Ext Cet Arc Hub Res Res Tes Acc Total 17179 | 64 390 859 1678 377 498 367 77 279 827 340 335 767 828 760 392 744 369 742 385 73 292 2317 954 1306 1159 Wait 1553 | . 14 19 229 30 9 43 . 1 165 1 14 19 86 66 43 89 40 60 44 19 24 237 127 133 41 Move 13590 | 49 326 778 1245 311 444 294 77 259 528 331 310 737 487 589 328 571 285 521 264 44 245 1881 746 961 979 Hop . | . . . . . . . . . . . . . . . . . . . . . . . . . . Pick Up 180 | 9 7 5 12 5 2 2 . 2 12 3 . 1 8 10 1 3 4 3 9 1 . 36 10 29 6 Fast Attach 134 | 3 . 1 22 1 1 . . . 12 1 . 4 3 8 5 5 6 6 7 1 1 19 4 13 11 Attach 87 | 3 2 3 7 2 2 1 . . 8 . 1 . . 9 . 2 3 3 6 . . 6 7 7 15 Detach 18 | . . . 2 . . . . . 2 . . . . 1 1 . . . 2 . . . . 2 8 Swap 179 | . 1 6 21 5 3 1 . 2 15 . . 2 8 17 1 15 3 2 7 1 2 38 7 22 . Drop 235 | . 6 8 21 4 . 1 . . 11 3 . 4 12 14 3 7 7 5 18 2 3 50 4 39 13 Fire 837 | . 32 39 114 19 24 25 . 15 71 . 10 . 26 46 10 51 16 42 19 5 17 47 48 78 83 Melee . | . . . . . . . . . . . . . . . . . . . . . . . . . . Ram 2 | . . . . . . . . . . . . . . . . . . . . . . . . . 2 Kick 43 | . . . 3 . 13 . . . 2 . . . 10 . . 1 . 9 . . . 2 1 1 1 Crush 4 | . 2 . 2 . . . . . . . . . . . . . . . . . . . . . . Escape Stasis 7 | . . . . . . . . . . . . . . . . . 5 1 . . . 1 . . . Rewire 299 | . . . . . . . . . . . . . 188 . . . . 90 . . . . . 21 . Trap 1 | . . . . . . . . . . 1 . . . . . . . . . . . . . . . Miscellaneous 10 | . . . . . . . . . 1 . . . . . . . . . 9 . . . . . . Route ------- -11/Scrapyard -10/Materials (discovered 4 exits: [*Mat x2] / [*Min] / [*Sub]) -10/Subcaves (discovered 2 exits: *Mat x2) -8/Materials (discovered 3 exits: *Fac x3) -7/Factory (discovered 4 exits: *Fac / Sto / *Low x2) -7/Lower Caves -7/Lower Caves -7/Data Miner -6/Proximity Caves -6/Factory -6/Lower Caves -6/Lower Caves (discovered 2 exits: *Fac / [*Zio]) -6/Zion -5/Proximity Caves -5/Factory (discovered 2 exits: *Fac / Upp) -5/Waste -5/Factory (discovered 2 exits: *Fac x2) -4/Factory -4/Extension (discovered 2 exits: *Res / *Cet) -4/Cetus (discovered 2 exits: *Res / [*Arc]) -4/Archives (discovered 3 exits: *Res / *Hub x2) -4/Hub_04(d) -3/Research (discovered 3 exits: *Res x3) -2/Research (discovered 2 exits: *Tes x2) -2/Testing -1/Access History --------- Turn | Location | Event 5 | -11/Scrapyard | Discovered new exit (range 16) 66 | -11/Scrapyard | Entered Materials 260 | -10/Materials | Discovered new exit (range 7) 300 | -10/Materials | Build established: Mutant 313 | -10/Materials | Discovered new exit (range 14) 373 | -10/Materials | Discovered new exit (range 14) 532 | -10/Materials | Discovered new exit (range 15) 690 | -10/Materials | Entered Subcaves 690 | -10/Subcaves | Accompanied by 1 ally 691 | -10/Subcaves | Approached by a straggling Scientist 746 | -10/Subcaves | Ambushed by Subdwellers from Twisted Machinery 955 | -10/Subcaves | A swath of the cavern ceiling suddenly collapsed 1536 | -10/Subcaves | Discovered new exit (range 12) 1742 | -10/Subcaves | Disturbed a concealed Subdweller 1766 | -10/Subcaves | Disturbed a concealed Subdweller 1767 | -10/Subcaves | Core integrity fell below 50% 1767 | -10/Subcaves | Disturbed a concealed Subdweller 1936 | -10/Subcaves | Learned location of Zion (-6) 1936 | -10/Subcaves | Met a Zionite searching for "candidates" 1937 | -10/Subcaves | Discovered new exit (range 9) 1982 | -10/Subcaves | A Subdweller sparked back to life 1982 | -10/Subcaves | A Subdweller sparked back to life 1982 | -10/Subcaves | A Subdweller sparked back to life 1987 | -10/Subcaves | Core integrity fell below 20% 1997 | -10/Subcaves | Found Prototype Leg 2067 | -10/Subcaves | Entered Materials 2067 | -8/Materials | Accompanied by 1 ally 2067 | -8/Materials | Evolved 4 slots: Propulsion x1, Utility x2, Weapon x1 2288 | -8/Materials | Repaired Imp. Ion Engine 2674 | -8/Materials | Destroyed 7 combat bots 2675 | -8/Materials | Lost 4 parts (1p1n1u1w) 2723 | -8/Materials | Build established: Gunner 2733 | -8/Materials | Core integrity fell below 50% 2819 | -8/Materials | Identified Arachnoskeleton 2856 | -8/Materials | Discovered new exit (range 15) 3226 | -8/Materials | Repaired Imp. Deuterium Engine 3266 | -8/Materials | Identified exit to Factory 3354 | -8/Materials | Build established: Scavenger-Gunner 3894 | -8/Materials | Build established: Scavenger-Tank 4067 | -8/Materials | First assault squad dispatched 4103 | -8/Materials | Repaired Imp. Carbon-fiber Leg 4130 | -8/Materials | Sterilization system engaged 4130 | -8/Materials | Non-combat units ordered to evacuate 4141 | -8/Materials | Core integrity fell below 20% 4167 | -8/Materials | Destroyed 13 combat bots 4230 | -8/Materials | Combat units ordered to evacuate 4328 | -8/Materials | Entered Factory 4328 | -7/Factory | Evolved 2 slots: Utility x1, Weapon x1 4540 | -7/Factory | Identified exit to Storage 4540 | -7/Factory | Identified exit to Lower Caves 4643 | -7/Factory | Found Prototype Launcher 4643 | -7/Factory | Identified Rocket Array 4685 | -7/Factory | Found Rocket Array 4700 | -7/Factory | Discovered new exit (range 11) 4786 | -7/Factory | Entered Lower Caves 5252 | -7/Lower Caves | Learned Factory terminal intel 5289 | -7/Lower Caves | Learned Factory stockpile data 5313 | -7/Lower Caves | Discovered new exit (range 16) 5400 | -7/Lower Caves | Entered another Lower Caves area 5438 | -7/Lower Caves | Learned Factory stockpile data 5823 | -7/Lower Caves | Discovered new exit (range 6) 5849 | -7/Lower Caves | Entered Data Miner 5849 | -7/Data Miner | Discovered new exit (range 6) 5867 | -7/Data Miner | Met Data Miner 5896 | -7/Data Miner | Learned location of Section 7 (-2) 5896 | -7/Data Miner | Acquired the access code to Warlord's prototype stash 5915 | -7/Data Miner | Received God Mode back door access code from Data Miner 5942 | -7/Data Miner | Entered Proximity Caves 5945 | -6/Proximity Caves | Spotter reported a threat 5945 | -6/Proximity Caves | Spotter reported a threat 6030 | -6/Proximity Caves | Attracted the attention of an 0b10 checkpoint 6280 | -6/Proximity Caves | Discovered new exit (range 5) 6293 | -6/Proximity Caves | Entered Factory 6293 | -6/Factory | Evolved 2 slots: Propulsion x1, Utility x1 6295 | -6/Factory | Loaded intel: 26 terminal locations 6467 | -6/Factory | Lost 4 allies 6717 | -6/Factory | Repaired Enh. Autogun 6772 | -6/Factory | Repaired Imp. Carbon-fiber Leg 6983 | -6/Factory | Lost 3 parts (1n1u1w) 7512 | -6/Factory | Discovered new exit (range 5) 7530 | -6/Factory | Entered Lower Caves 7619 | -6/Lower Caves | Build established: Scavenger-Gunner 7630 | -6/Lower Caves | Encountered a Warlord checkpoint 7783 | -6/Lower Caves | Learned Factory non-interactive machine intel 7969 | -6/Lower Caves | Discovered new exit (range 9) 7980 | -6/Lower Caves | Entered another Lower Caves area 8017 | -6/Lower Caves | Discovered new exit (range 20) 8371 | -6/Lower Caves | Discovered new exit (range 18) 8389 | -6/Lower Caves | Attracted the attention of an 0b10 checkpoint 8392 | -6/Lower Caves | Entered Zion 8433 | -6/Zion | System corruption cleaned by Quarantine Array 8490 | -6/Zion | Acquired unknown access codes intercepted by a Zionite 8515 | -6/Zion | Discovered new exit (range 12) 8529 | -6/Zion | Learned location of Extension (-4) 8542 | -6/Zion | Found Prototype Device 8543 | -6/Zion | Identified Mobile Refinery Mk. CCLXVII 8787 | -6/Zion | Given A8's code to call for help 9099 | -6/Zion | Met Imprinter 9278 | -6/Zion | Entered Proximity Caves 9354 | -5/Proximity Caves | Spotter reported a threat 9501 | -5/Proximity Caves | Snuck into a huge 0b10 base via the rear entrance 9782 | -5/Proximity Caves | Lost 5 allies 9838 | -5/Proximity Caves | Discovered new exit (range 8) 10140 | -5/Proximity Caves | Spotted B-75 Beast 10193 | -5/Proximity Caves | Lost 3 allies 10249 | -5/Proximity Caves | Entered Factory 10249 | -5/Factory | Accompanied by 2 allies 10249 | -5/Factory | Evolved 2 slots: Propulsion x1, Utility x1 10250 | -5/Factory | Identified exit to Upper Caves 10252 | -5/Factory | Loaded intel: 210 non-interactive machine locations 10708 | -5/Factory | Garrison activated, responded to threat 10732 | -5/Factory | Build established: Skirmisher 10887 | -5/Factory | Discovered new exit (range 15) 11211 | -5/Factory | Sucked down chute 11211 | -5/Factory | Entered Waste 11233 | -5/Waste | Spotted C-40 Crusher 11236 | -5/Waste | 2 allies followed down the chute 11239 | -5/Waste | Spotted C-40 Crusher 11245 | -5/Waste | Destroyed C-40 Crusher 11245 | -5/Waste | Destroyed C-40 Crusher 11269 | -5/Waste | Spotted C-40 Crusher 11269 | -5/Waste | Spotted C-40 Crusher 11277 | -5/Waste | Destroyed C-40 Crusher 11280 | -5/Waste | Spotted C-40 Crusher 11283 | -5/Waste | Destroyed C-40 Crusher 11291 | -5/Waste | Destroyed C-40 Crusher 11328 | -5/Waste | Warlord forces began an assault 11421 | -5/Waste | Spotted C-40 Crusher 11432 | -5/Waste | Allies destroyed C-40 Crusher 11486 | -5/Waste | Discovered new exit (range 13) 11669 | -5/Waste | Build established: Scavenger-Tank 11671 | -5/Waste | Entered Factory 11671 | -5/Factory | Accompanied by 19 allies 11773 | -5/Factory | Lost 4 allies 11843 | -5/Factory | Lost 3 allies 11930 | -5/Factory | Lost 5 allies 12170 | -5/Factory | Destroyed 7 combat bots 12238 | -5/Factory | Discovered new exit (range 13) 12295 | -5/Factory | Destroyed 8 combat bots 12305 | -5/Factory | Discovered new exit (range 17) 12453 | -5/Factory | Identified exit to Factory 12501 | -5/Factory | High security lockdown imminent 12580 | -5/Factory | Entered another Factory area 12580 | -4/Factory | Evolved 2 slots: Power x1, Utility x1 13012 | -4/Factory | Discovered new exit (range 10) 13022 | -4/Factory | Entered Extension 13102 | -4/Extension | Rescued a captive Derelict 13103 | -4/Extension | Rescued a captive Derelict 13173 | -4/Extension | Rescued a captive Derelict 13173 | -4/Extension | Rescued a captive Derelict 13283 | -4/Extension | Rescued a captive Derelict 13376 | -4/Extension | Spotted B-86 Titan 13380 | -4/Extension | Rescued A7 13417 | -4/Extension | Spotted B-86 Titan 13423 | -4/Extension | Destroyed B-86 Titan 13461 | -4/Extension | Build established: Scavenger-Skirmisher 13468 | -4/Extension | Lost 3 parts (2u1w) 13469 | -4/Extension | Allies destroyed B-86 Titan 13522 | -4/Extension | First assault squad dispatched 13597 | -4/Extension | Disrupted transfer network 13676 | -4/Extension | System corruption reached 10% 13678 | -4/Extension | Rescued a captive Derelict 13698 | -4/Extension | Rescued a captive Derelict 13700 | -4/Extension | Rescued a captive Derelict 13849 | -4/Extension | Rescued a captive Derelict 13851 | -4/Extension | Rescued a captive Derelict 13885 | -4/Extension | Discovered new exit (range 10) 13887 | -4/Extension | Discovered new exit (range 6) 13919 | -4/Extension | Disrupted transfer network 13936 | -4/Extension | Entered Cetus 13936 | -4/Cetus | Accompanied by 11 allies (A7) 13941 | -4/Cetus | Acquired a Cetus Manufacturing Module code from A7 13950 | -4/Cetus | Spotted Cetus Guard 13953 | -4/Cetus | Spotted Cetus Guard 13953 | -4/Cetus | Spotted Cetus Guard 13963 | -4/Cetus | Spotted Cetus Guard 13972 | -4/Cetus | Allies destroyed Cetus Guard 13974 | -4/Cetus | Allies destroyed Cetus Guard 13975 | -4/Cetus | Allies destroyed Cetus Guard 13982 | -4/Cetus | Allies destroyed Cetus Guard 14051 | -4/Cetus | Started Cetus Manufacturing Module 14057 | -4/Cetus | Discovered new exit (range 22) 14076 | -4/Cetus | Manufactured an Enhanced Grunt 14101 | -4/Cetus | Manufactured an Enhanced Grunt 14126 | -4/Cetus | Manufactured an Enhanced Grunt 14151 | -4/Cetus | Manufactured an Enhanced Grunt 14176 | -4/Cetus | Manufactured an Enhanced Grunt 14177 | -4/Cetus | Escorted A7 to Cetus Mainframe 14224 | -4/Cetus | Spotted Cetus Guard 14225 | -4/Cetus | Spotted Cetus Guard 14225 | -4/Cetus | Spotted Cetus Guard 14234 | -4/Cetus | Spotted Cetus Guard 14243 | -4/Cetus | Allies destroyed Cetus Guard 14248 | -4/Cetus | Destroyed Cetus Guard 14251 | -4/Cetus | Destroyed Cetus Guard 14254 | -4/Cetus | Allies destroyed Cetus Guard 14262 | -4/Cetus | Found Exp. Thermal Shield 14267 | -4/Cetus | Discovered new exit (range 21) 14275 | -4/Cetus | Lost 3 allies 14281 | -4/Cetus | Met Revision 17 14376 | -4/Cetus | Entered Archives 14376 | -4/Archives | Accompanied by 11 allies (A7) 14381 | -4/Archives | Received a hacking code to weaken MAIN.C 14411 | -4/Archives | Discovered new exit (range 22) 14416 | -4/Archives | Discovered new exit (range 21) 14421 | -4/Archives | Discovered new exit (range 14) 14462 | -4/Archives | Entered Hub_04(d) 14462 | -4/Hub_04(d) | Accompanied by 10 allies 14564 | -4/Hub_04(d) | Build established: Scavenger-Tank 14665 | -4/Hub_04(d) | Discovered new exit (range 6) 14787 | -4/Hub_04(d) | Network Hub disabled 14799 | -4/Hub_04(d) | Spotted Lightning 14802 | -4/Hub_04(d) | Spotted Lightning 14803 | -4/Hub_04(d) | Spotted Lightning 14805 | -4/Hub_04(d) | Entered Research 14805 | -3/Research | Evolved 2 slots: Utility x1, Weapon x1 14833 | -3/Research | Lost 6 allies 14873 | -3/Research | Repaired Adv. Heat Sink 15005 | -3/Research | Revision forces began assault on 0b10 15033 | -3/Research | Met up with Revision 17++ 15102 | -3/Research | Discovered new exit (range 18) 15505 | -3/Research | Research terminal network offline 15833 | -3/Research | Spotted Striker 15869 | -3/Research | Lost 3 allies 16003 | -3/Research | Found Prototype Processor 16003 | -3/Research | Identified Exp. Core Analyzer 16072 | -3/Research | Discovered new exit (range 3) 16412 | -3/Research | Discovered new exit (range 8) 16633 | -3/Research | Spotted Striker 16657 | -3/Research | Spotted Striker 16659 | -3/Research | Destroyed Striker 16660 | -3/Research | Spotted Executioner 16663 | -3/Research | Destroyed Executioner 16722 | -3/Research | Found Prototype Device 16725 | -3/Research | Identified Adv. Kinecellerator 16796 | -3/Research | Spotted Striker 16797 | -3/Research | Destroyed Striker 16880 | -3/Research | Spotted Striker 16896 | -3/Research | Destroyed Striker 17210 | -3/Research | Spotted Striker 17234 | -3/Research | Destroyed Striker 17274 | -3/Research | Entered another Research area 17274 | -2/Research | Evolved 2 slots: Utility x1, Weapon x1 17370 | -2/Research | Spotted B-90 Cyclops 17377 | -2/Research | Destroyed B-90 Cyclops 17405 | -2/Research | Identified exit to Testing 17575 | -2/Research | Build established: Scavenger-Executioner 17672 | -2/Research | Spotted B-90 Cyclops 17733 | -2/Research | Garrison activated, responded to threat 18068 | -2/Research | Lost 5 parts (1p1n3u) 18306 | -2/Research | Entered Testing 18343 | -2/Testing | Found Prototype Leg 18361 | -2/Testing | Identified Myomer Exoskeleton 18518 | -2/Testing | Found Gui. Micro-nuke Launcher 18545 | -2/Testing | Spotted Striker 18545 | -2/Testing | Spotted Striker 18674 | -2/Testing | Found Prototype Energy Gun 18674 | -2/Testing | Identified Tachyon Dispersion Ray 18783 | -2/Testing | Found Prototype Device 18788 | -2/Testing | Identified Exp. Thermal Defense Suite 18882 | -2/Testing | Found Portable AFG 18889 | -2/Testing | Spotted Superbehemoth 18928 | -2/Testing | Discovered new exit (range 11) 18967 | -2/Testing | Garrison activated, responded to threat 19046 | -2/Testing | Found Prototype Launcher 19062 | -2/Testing | Identified Tactical Quantum Warhead 19200 | -2/Testing | System corruption reached 10% 19228 | -2/Testing | Found Prototype Energy Cannon 19228 | -2/Testing | Identified Cld. Nova Cannon 19327 | -2/Testing | Attached Arachnoskeleton, gained temporary slots: Propulsion x3 19376 | -2/Testing | Scanned by Researcher 19446 | -2/Testing | Found Prototype Ballistic Cannon 19446 | -2/Testing | Identified Omega Cannon 19490 | -2/Testing | Found Prototype Device 19490 | -2/Testing | Identified Exp. Hardlight Generator 19595 | -2/Testing | Rewired PD-KTCDSRG8PL 19699 | -2/Testing | Found Prototype Launcher 19701 | -2/Testing | Identified Tesla Bomb Launcher 19737 | -2/Testing | Identified exit to Access 19742 | -2/Testing | Entered Access 19742 | -1/Access | Accompanied by 1 ally 19980 | -1/Access | Destroyed 7 combat bots 20106 | -1/Access | Energy Cycler disabled 20212 | -1/Access | Lost 5 parts (1p3u1w) 20242 | -1/Access | First assault squad dispatched 20246 | -1/Access | System corruption reached 10% 20260 | -1/Access | Incoming assault squad redirected 20263 | -1/Access | Incoming assault squad redirected 20272 | -1/Access | Destroyed 10 combat bots 20280 | -1/Access | Lost 5 parts (1p1n1u2w) 20284 | -1/Access | Garrison activated, responded to threat 20330 | -1/Access | Spotted B-99 Colossus 20520 | -1/Access | Incoming assault squad redirected 20650 | -1/Access | Build established: Scavenger-Tank 20659 | -1/Access | Spotted B-99 Colossus 20704 | -1/Access | Incoming assault squad redirected 20775 | -1/Access | Lost 12 parts (1p5n4u2w) 20814 | -1/Access | Core integrity fell below 50% 20850 | -1/Access | Core integrity fell below 20% 20887 | -1/Access | Destroyed by P-80 Master with Gamma Rifle Last Messages --------------- 20844_ Penetrated by Slug. 20844_ Slug penetrates Wall. 20845_ B-99 Colossus activates siege mode. 20849_ Knocked back. 20849_ Penetrated by Slug. 20849_ Slug penetrates Wall. 20849_ Penetrated by Slug. 20849_ Slug penetrates Wall. 20851_ System corrupted: Component data lost. 20859_ U-05 Engineer builds a Wall. 20867_ U-05 Engineer lays Concrete. 20870_ C-45 Heavy ARC bursts open, deploying its payload. 20870_ G-73 Enforcer unfolds itself. 20870_ B-74 Champion unfolds itself. 20870_ L-61 Swordsman unfolds itself. 20870_ G-73 Enforcer unfolds itself. 20870_ M-36 Artificer unfolds itself. 20876_ M-36 Artificer repairs L-61 Swordsman. 20887_ System corrupted: Matter fused (-8). Map ----- +----------------------------------------------------+ | # #?# #?????????????????????????????? | | # " #?# #?????????????????????????????? | | # """ #?# #?????????????????????????????? | | # """ #?# #?????????????????????????????? | | " #?#" #?????????????????????????????? | | # #?#%" #?????????????????????????????? | | # #?#" #?????????????????????????????? | | # #?# #?????????????????????????????? | | ####?#####?# #?????????????????????????????? | | #??????????# #???????????????????????????? | | #??????????# #???????????????????????????? | | #??????????# #???????????????????????????? | | ###?????????## #########???????????????????? | | ????????????# #??##############???# | | ????????????# #??# #???# | | ????????????# #??# #???# | | ????????????# #??# #???# | | ????????????# #??# #???# | | ????????????# #??# #???# | | ???????????## #### #???# | | ############## # !! #???# | | ## % # # ! ] #???# | | ## % # ## ! #???# | | ## # # = #???# | | ## ## #???# | | ## @ ## # #???# | | ## %##########+########## | | # | | # % | | # % | | # % % | | #% *% | | # % ! | | ########++"##p | | % #################+########## | | !% % #?????????????? ???????# | | = #???????????? ?????# | | ^ u #???????????# " #???# | | ^ #???????????# """" #???# | | #???????????#""""" #??## | | ^ #???????????# """"" #### | | ##"############???????????# """" ## # | | #?#???????????????????????# " ## ## | | #?????????????????????????# ## # | | #?????????????????????????# ## #% | | #???????????????????????????? #?# # | | ????????????????????????????? ! #?? # | | ????????????????????????????? =#?? # | | ?????????????????????????????? #???# | | ???????????????????????????????? #???# | +----------------------------------------------------+ Best States ------------- Heat Dissipation 157 Energy Generation 45 Energy Capacity 640 Matter Stores 300 Matter Capacity 300 Sight Range 23 Robot Scan Range 16 Terrain Scan Density 10 Base Temperature (-) 150 Armor Coverage 1200 Resistance: KI 25 Resistance: TH 30 Resistance: EM 20 Phase Shifting 15 Evasion (%) 99 Targeting Accuracy 5 Launcher Accuracy 30 Core Analysis 8 Recoil Reduction 3 Energy Filtering 50 Particle Charging 25 Kinecelleration 50 Salvage Targeting 6 Offensive Hacking 20 Item Schematics ----------------- Combat Drone Bay | -7/Data Miner | Free Lgt. Regenerative Plating | -7/Data Miner | Free Cld. Aerolev Unit | -7/Data Miner | Free Exp. Targeting Computer | -7/Data Miner | Free Imp. Heavy Machine Gun | -7/Data Miner | Free Arm. Medium Treads | -7/Data Miner | Free Adv. Field Recycling Unit | -7/Data Miner | Free Enh. Gauss Cannon | -7/Data Miner | Free Remote Shield | -7/Data Miner | Free Hvy. Treads | -7/Data Miner | Free Phase Gun | -7/Data Miner | Free Gravity Neutralizer | -2/Testing | Archive Exp. Optical Array | -2/Testing | Archive Imp. Energy Well | -2/Testing | Archive Robot Schematics ------------------ C-17 Slicer | -7/Data Miner | Free H-55 Commando | -7/Data Miner | Free A-15 Conveyor | -7/Data Miner | Free M-22 Extractor | -7/Data Miner | Free L-41 Fighter | -7/Data Miner | Free B-48 Gladiator | -7/Data Miner | Free H-88 Terminator | -2/Testing | Archive Fabricated ------------ Nothing Repaired ---------- Imp. Ion Engine | 21% | -8/Materials Imp. Deuterium Engine | 36% | -8/Materials Imp. Carbon-fiber Leg | 8% | -8/Materials Enh. Autogun | 10% | -6/Factory Imp. Carbon-fiber Leg | 11% | -6/Factory Adv. Heat Sink | 6% | -3/Research Studied --------- Imp. Grenade Launcher | -8/Materials | Hacked Flexi-carbon Leg | -6/Factory | Hacked Gatling Laser | -6/Factory | Hacked Arm. Leg | -5/Factory | Hacked Wave Gun | -5/Factory | Hacked Neutrino Core | -5/Factory | Hacked Carbon-fiber Leg | -5/Factory | Hacked Imp. Plasma Cutter | -5/Factory | Hacked Hardcell Cannon | -4/Factory | Hacked Imp. Thunder Leg | -3/Research | Hacked Quantum Rifle | -3/Research | Hacked Particle Reactor | -3/Research | Hacked Myomer Leg | -3/Research | Hacked Thunder Leg | -2/Testing | Hacked Adv. Remote Datajack | -1/Access | Hacked Alien Tech Used ----------------- None Achievements -------------- Equal Opportunity Bot Explosive Keycard Tailor-made Wiki Contributor Challenges ------------ None Game ------ Seed SensorGravjetMeganuke Manual? 0 Play Time 03:51:26 Cumulative 417.4 hours Start 2025.12.23 @ 00:45:41 End 2025.12.23 @ 05:15:23 Sessions 1 Manual Loads 0 Difficulty Rogue Special Mode None Game No. 197 Rogue 197 Adventurer 0 Explorer 0 Win Type - Total 12 Types 9/0/2/0/0/0/0/0/0/1 Lore% 84 Gallery% 82 Achievement% 56 Wizard Run 0 Options --------- Layout 1 ASCII 0 Keyboard 0 Movement Mouse Keybinds 0 Fullscreen 1 Font 24/Smallcaps Map View 50x35 Zoom Use 0% Tactical HUD 1 Map Filters NONE Filters NONE Steam 1 RUN: e7044a7b-2a89-49d2-b5d6-3b54c577c93a